[Event "Titled Tuesday Blitz June 28 Late 2022"]
[White "D`Arruda, Ricardo D."]
[Black "Navarrete Mendez, Gonzalo Alberto"]
[WhiteFideId "100692"]
[BlackFideId "5106850"]
[WhiteElo "2452"]
[BlackElo "2261"]
[Result "0-1"]
[Round "03"]
[TimeControl "180+1"]
[Date "2022.06.29"]
[WhiteClock "0:00:21"]
[BlackClock "0:00:34"]

1. d4 {[%clk 0:02:43]}  d5 {[%clk 0:02:59]} 2. Nf3 {[%clk 0:02:43]}  Nf6 {[%clk 0:02:59]} 3. Bf4 {[%clk 0:02:43]}  c5 {[%clk 0:02:59]} 4. e3 {[%clk 0:02:43]}  Nc6 {[%clk 0:02:59]} 5. c3 {[%clk 0:02:43]}  Qb6 {[%clk 0:02:59]} 6. Qb3 {[%clk 0:02:42]}  c4 {[%clk 0:02:59]} 7. Qxb6 {[%clk 0:02:42]}  axb6 {[%clk 0:03:00]} 8. Na3 {[%clk 0:02:42]}  e5 {[%clk 0:02:55]} 9. dxe5 {[%clk 0:01:57]}  Bxa3 {[%clk 0:02:53]} 10. bxa3 {[%clk 0:01:58]}  Ne4 {[%clk 0:02:53]} 11. Nd4 {[%clk 0:01:31]}  O-O {[%clk 0:02:43]} 12. Nb5 {[%clk 0:01:23]}  Ra5 {[%clk 0:02:36]} 13. Rb1 {[%clk 0:01:21]}  Bf5 {[%clk 0:02:36]} 14. f3 {[%clk 0:01:14]}  Nc5 {[%clk 0:02:36]} 15. e4 {[%clk 0:01:13]}  dxe4 {[%clk 0:02:32]} 16. Nd6 {[%clk 0:01:13]}  Bg6 {[%clk 0:02:25]} 17. Nxc4 {[%clk 0:01:13]}  exf3 {[%clk 0:02:07]} 18. Rxb6 {[%clk 0:01:07]}  fxg2 {[%clk 0:02:01]} 19. Bxg2 {[%clk 0:01:07]}  Nd3+ {[%clk 0:02:01]} 20. Kd2 {[%clk 0:01:07]}  Nxf4 {[%clk 0:01:57]} 21. Bxc6 {[%clk 0:01:07]}  Rc5 {[%clk 0:01:53]} 22. Bb5 {[%clk 0:01:04]}  Bd3 {[%clk 0:01:37]} 23. Nd6 {[%clk 0:00:59]}  Rxe5 {[%clk 0:01:25]} 24. Bxd3 {[%clk 0:00:50]}  Rd5 {[%clk 0:01:24]} 25. Ke3 {[%clk 0:00:50]}  Nxd3 {[%clk 0:01:17]} 26. Ke4 {[%clk 0:00:50]}  Rxd6 {[%clk 0:01:10]} 27. Rxd6 {[%clk 0:00:49]}  Nf2+ {[%clk 0:01:11]} 28. Kd5 {[%clk 0:00:48]}  Nxh1 {[%clk 0:01:11]} 29. Rd7 {[%clk 0:00:46]}  b6 {[%clk 0:01:07]} 30. Rd6 {[%clk 0:00:39]}  f5 {[%clk 0:01:07]} 31. Rxb6 {[%clk 0:00:38]}  f4 {[%clk 0:01:07]} 32. Rb1 {[%clk 0:00:38]}  Nf2 {[%clk 0:01:05]} 33. c4 {[%clk 0:00:37]}  Ng4 {[%clk 0:01:03]} 34. h3 {[%clk 0:00:35]}  Ne3+ {[%clk 0:01:00]} 35. Kd4 {[%clk 0:00:30]}  Rc8 {[%clk 0:00:59]} 36. c5 {[%clk 0:00:27]}  Nc2+ {[%clk 0:00:58]} 37. Ke4 {[%clk 0:00:26]}  Nxa3 {[%clk 0:00:58]} 38. Rc1 {[%clk 0:00:25]}  g5 {[%clk 0:00:53]} 39. Kf5 {[%clk 0:00:25]}  h6 {[%clk 0:00:52]} 40. c6 {[%clk 0:00:24]}  Nb5 {[%clk 0:00:51]} 41. Kg6 {[%clk 0:00:23]}  Nd4 {[%clk 0:00:34]} 42. Kxh6 {[%clk 0:00:23]}  Rxc6+ {[%clk 0:00:33]} 43. Rxc6 {[%clk 0:00:21]}  Nxc6 {[%clk 0:00:34]} 0-1


[Site "https://www.chess.com"]

[Event "Titled Tuesday Blitz June 28 Late 2022"]
[White "De Souza, Cristiano Gomes"]
[Black "Herman, Daniel"]
[WhiteFideId "2151758"]
[BlackFideId "30935008"]
[WhiteElo "2068"]
[BlackElo "1897"]
[Result "0-1"]
[Round "03"]
[TimeControl "180+1"]
[Date "2022.06.29"]
[WhiteClock "0:00:12"]
[BlackClock "0:00:20"]

1. d4 {[%clk 0:03:00]}  d5 {[%clk 0:02:58]} 2. c4 {[%clk 0:03:00]}  c6 {[%clk 0:02:58]} 3. Nf3 {[%clk 0:02:59]}  Nf6 {[%clk 0:02:57]} 4. Nc3 {[%clk 0:03:00]}  dxc4 {[%clk 0:02:55]} 5. a4 {[%clk 0:02:59]}  Bf5 {[%clk 0:02:54]} 6. e3 {[%clk 0:02:59]}  e6 {[%clk 0:02:53]} 7. Ne5 {[%clk 0:02:56]}  Nbd7 {[%clk 0:02:48]} 8. Nxd7 {[%clk 0:02:56]}  Qxd7 {[%clk 0:02:49]} 9. Bxc4 {[%clk 0:02:54]}  Bb4 {[%clk 0:02:50]} 10. O-O {[%clk 0:02:53]}  O-O {[%clk 0:02:48]} 11. Ne2 {[%clk 0:02:52]}  Rad8 {[%clk 0:02:44]} 12. f3 {[%clk 0:02:50]}  e5 {[%clk 0:02:43]} 13. Qb3 {[%clk 0:02:46]}  Bd6 {[%clk 0:02:30]} 14. e4 {[%clk 0:02:44]}  Be6 {[%clk 0:02:22]} 15. Bxe6 {[%clk 0:02:39]}  fxe6 {[%clk 0:02:15]} 16. Be3 {[%clk 0:02:35]}  Kh8 {[%clk 0:02:07]} 17. Rad1 {[%clk 0:02:31]}  Qe7 {[%clk 0:02:04]} 18. g3 {[%clk 0:02:20]}  c5 {[%clk 0:01:54]} 19. dxe5 {[%clk 0:02:10]}  Bxe5 {[%clk 0:01:53]} 20. f4 {[%clk 0:02:10]}  Bb8 {[%clk 0:01:40]} 21. Nc3 {[%clk 0:02:03]}  Ng4 {[%clk 0:01:31]} 22. Bc1 {[%clk 0:01:48]}  Rc8 {[%clk 0:01:22]} 23. Qc4 {[%clk 0:01:42]}  Rfd8 {[%clk 0:01:06]} 24. h3 {[%clk 0:01:41]}  Nf6 {[%clk 0:01:01]} 25. Be3 {[%clk 0:01:37]}  Nd7 {[%clk 0:00:51]} 26. a5 {[%clk 0:01:28]}  a6 {[%clk 0:00:47]} 27. Rd2 {[%clk 0:01:15]}  Ba7 {[%clk 0:00:43]} 28. Rfd1 {[%clk 0:01:14]}  Nb8 {[%clk 0:00:43]} 29. Rxd8+ {[%clk 0:00:50]}  Rxd8 {[%clk 0:00:44]} 30. Rxd8+ {[%clk 0:00:49]}  Qxd8 {[%clk 0:00:45]} 31. Qxe6 {[%clk 0:00:48]}  Nc6 {[%clk 0:00:43]} 32. Qd5 {[%clk 0:00:35]}  Qxa5 {[%clk 0:00:38]} 33. e5 {[%clk 0:00:21]}  Qa1+ {[%clk 0:00:36]} 34. Nd1 {[%clk 0:00:20]}  h6 {[%clk 0:00:25]} 35. e6 {[%clk 0:00:20]}  Nd4 {[%clk 0:00:22]} 36. Qd8+ {[%clk 0:00:16]}  Kh7 {[%clk 0:00:21]} 37. Bxd4 {[%clk 0:00:15]}  Qxd1+ {[%clk 0:00:20]} 38. Kf2 {[%clk 0:00:15]}  cxd4 {[%clk 0:00:19]} 39. e7 {[%clk 0:00:13]}  d3+ {[%clk 0:00:19]} 40. Kg2 {[%clk 0:00:12]}  Qe2+ {[%clk 0:00:19]} 41. Kh1 {[%clk 0:00:12]}  Qf1+ {[%clk 0:00:20]} 42. Kh2 {[%clk 0:00:12]}  Qg1# {[%clk 0:00:20]} 0-1


[Site "https://www.chess.com"]

[Event "Titled Tuesday Blitz June 28 Late 2022"]
[White "Diaz, Fernando"]
[Black "Ladan, Nicholas"]
[WhiteFideId "3701255"]
[BlackFideId "30918855"]
[WhiteElo "1934"]
[BlackElo "2167"]
[Result "1-0"]
[Round "03"]
[TimeControl "180+1"]
[Date "2022.06.29"]
[WhiteClock "0:00:19"]
[BlackClock "0:00:20"]

1. e4 {[%clk 0:02:54]}  e5 {[%clk 0:02:59]} 2. Nf3 {[%clk 0:02:52]}  Nc6 {[%clk 0:03:00]} 3. Bc4 {[%clk 0:02:52]}  Nf6 {[%clk 0:02:59]} 4. Ng5 {[%clk 0:02:52]}  d5 {[%clk 0:02:59]} 5. exd5 {[%clk 0:02:52]}  Na5 {[%clk 0:03:00]} 6. Bb5+ {[%clk 0:02:53]}  c6 {[%clk 0:03:00]} 7. dxc6 {[%clk 0:02:54]}  bxc6 {[%clk 0:03:01]} 8. Be2 {[%clk 0:02:55]}  h6 {[%clk 0:03:00]} 9. Nf3 {[%clk 0:02:55]}  e4 {[%clk 0:03:01]} 10. Ne5 {[%clk 0:02:56]}  Bc5 {[%clk 0:03:01]} 11. O-O {[%clk 0:02:45]}  O-O {[%clk 0:02:46]} 12. c3 {[%clk 0:02:38]}  Re8 {[%clk 0:02:35]} 13. d4 {[%clk 0:02:36]}  exd3 {[%clk 0:02:29]} 14. Nxd3 {[%clk 0:02:35]}  Bd6 {[%clk 0:02:29]} 15. Bf4 {[%clk 0:02:33]}  Ba6 {[%clk 0:02:19]} 16. Be3 {[%clk 0:01:29]}  Qc7 {[%clk 0:02:15]} 17. h3 {[%clk 0:01:22]}  Rad8 {[%clk 0:02:15]} 18. Qc2 {[%clk 0:01:11]}  Nc4 {[%clk 0:02:10]} 19. Bd4 {[%clk 0:00:59]}  Nd5 {[%clk 0:01:55]} 20. Bf3 {[%clk 0:00:49]}  Ne5 {[%clk 0:01:34]} 21. Bxe5 {[%clk 0:00:34]}  Bxe5 {[%clk 0:01:34]} 22. c4 {[%clk 0:00:33]}  Nb6 {[%clk 0:01:20]} 23. Nxe5 {[%clk 0:00:29]}  Qxe5 {[%clk 0:01:16]} 24. Nd2 {[%clk 0:00:28]}  Rd4 {[%clk 0:00:44]} 25. b3 {[%clk 0:00:25]}  Red8 {[%clk 0:00:44]} 26. Rfe1 {[%clk 0:00:23]}  Qf4 {[%clk 0:00:26]} 27. Ne4 {[%clk 0:00:22]}  Bc8 {[%clk 0:00:23]} 28. Re3 {[%clk 0:00:13]}  Bf5 {[%clk 0:00:20]} 29. Rae1 {[%clk 0:00:13]}  a5 {[%clk 0:00:18]} 30. Qe2 {[%clk 0:00:13]}  a4 {[%clk 0:00:17]} 31. Ng3 {[%clk 0:00:12]}  Bg6 {[%clk 0:00:15]} 32. Re8+ {[%clk 0:00:12]}  Rxe8 {[%clk 0:00:15]} 33. Qxe8+ {[%clk 0:00:13]}  Kh7 {[%clk 0:00:16]} 34. Qxc6 {[%clk 0:00:13]}  Nd7 {[%clk 0:00:14]} 35. Qxa4 {[%clk 0:00:13]}  Ne5 {[%clk 0:00:12]} 36. Qa8 {[%clk 0:00:12]}  Rd3 {[%clk 0:00:11]} 37. Be4 {[%clk 0:00:09]}  f5 {[%clk 0:00:08]} 38. Bxd3 {[%clk 0:00:09]}  Nxd3 {[%clk 0:00:09]} 39. Rf1 {[%clk 0:00:09]}  h5 {[%clk 0:00:09]} 40. Qf3 {[%clk 0:00:10]}  Qd2 {[%clk 0:00:07]} 41. Nxf5 {[%clk 0:00:08]}  Ne5 {[%clk 0:00:06]} 42. Qe4 {[%clk 0:00:07]}  Qg5 {[%clk 0:00:06]} 43. f4 {[%clk 0:00:05]}  Qxf5 {[%clk 0:00:04]} 44. Qxf5 {[%clk 0:00:06]}  Bxf5 {[%clk 0:00:05]} 45. fxe5 {[%clk 0:00:07]}  Be6 {[%clk 0:00:06]} 46. Rd1 {[%clk 0:00:06]}  Kg6 {[%clk 0:00:06]} 47. Rd6 {[%clk 0:00:07]}  Kf5 {[%clk 0:00:07]} 48. Rxe6 {[%clk 0:00:08]}  Kxe6 {[%clk 0:00:08]} 49. Kf2 {[%clk 0:00:08]}  Kxe5 {[%clk 0:00:09]} 50. Ke3 {[%clk 0:00:09]}  g5 {[%clk 0:00:09]} 51. g4 {[%clk 0:00:10]}  h4 {[%clk 0:00:09]} 52. b4 {[%clk 0:00:10]}  Ke6 {[%clk 0:00:08]} 53. Ke4 {[%clk 0:00:10]}  Kf6 {[%clk 0:00:08]} 54. Kd5 {[%clk 0:00:10]}  Ke7 {[%clk 0:00:08]} 55. c5 {[%clk 0:00:11]}  Kd7 {[%clk 0:00:08]} 56. c6+ {[%clk 0:00:12]}  Kc7 {[%clk 0:00:09]} 57. b5 {[%clk 0:00:12]}  Kb6 {[%clk 0:00:10]} 58. Kd6 {[%clk 0:00:13]}  Kxb5 {[%clk 0:00:09]} 59. Kd7 {[%clk 0:00:14]}  Kc4 {[%clk 0:00:10]} 60. c7 {[%clk 0:00:15]}  Kd4 {[%clk 0:00:11]} 61. c8=Q {[%clk 0:00:16]}  Ke4 {[%clk 0:00:12]} 62. Qf8 {[%clk 0:00:16]}  Ke3 {[%clk 0:00:12]} 63. Qf5 {[%clk 0:00:16]}  Ke2 {[%clk 0:00:12]} 64. Qxg5 {[%clk 0:00:16]}  Kf3 {[%clk 0:00:13]} 65. Qxh4 {[%clk 0:00:17]}  Kg2 {[%clk 0:00:14]} 66. g5 {[%clk 0:00:16]}  Kh2 {[%clk 0:00:15]} 67. Qg4 {[%clk 0:00:16]}  Kh1 {[%clk 0:00:16]} 68. h4 {[%clk 0:00:16]}  Kh2 {[%clk 0:00:17]} 69. h5 {[%clk 0:00:17]}  Kh1 {[%clk 0:00:18]} 70. h6 {[%clk 0:00:18]}  Kh2 {[%clk 0:00:19]} 71. h7 {[%clk 0:00:18]}  Kh1 {[%clk 0:00:20]} 72. h8=Q# {[%clk 0:00:19]} 1-0


[Site "https://www.chess.com"]

[Event "Titled Tuesday Blitz June 28 Late 2022"]
[White "Diaz Rosas, Julio Cesar"]
[Black "Matlakov, Maxim"]
[WhiteFideId "5105099"]
[BlackFideId "4168003"]
[WhiteElo "2278"]
[BlackElo "2669"]
[Result "0-1"]
[Round "03"]
[TimeControl "180+1"]
[Date "2022.06.28"]
[WhiteClock "0:02:55"]
[BlackClock "0:02:48"]

1. d4 {[%clk 0:03:00]}  d5 {[%clk 0:02:59]} 2. c4 {[%clk 0:02:59]}  c6 {[%clk 0:03:00]} 3. Nf3 {[%clk 0:02:56]}  Nf6 {[%clk 0:02:59]} 4. Qc2 {[%clk 0:02:57]}  g6 {[%clk 0:02:58]} 5. g3 {[%clk 0:02:57]}  Bg7 {[%clk 0:02:57]} 6. Bg2 {[%clk 0:02:56]}  O-O {[%clk 0:02:57]} 7. O-O {[%clk 0:02:56]}  Bf5 {[%clk 0:02:57]} 8. Qb3 {[%clk 0:02:57]}  Qb6 {[%clk 0:02:57]} 9. c5 {[%clk 0:02:57]}  Qxb3 {[%clk 0:02:52]} 10. axb3 {[%clk 0:02:58]}  Na6 {[%clk 0:02:51]} 11. Ra4 {[%clk 0:02:55]}  Bxb1 {[%clk 0:02:48]} 0-1


[Site "https://www.chess.com"]

[Event "Titled Tuesday Blitz June 28 Late 2022"]
[White "Gatterer, Florian"]
[Black "Przybylski, Wojciech"]
[WhiteFideId "811688"]
[BlackFideId "1117599"]
[WhiteElo "2218"]
[BlackElo "2133"]
[Result "0-1"]
[Round "03"]
[TimeControl "180+1"]
[Date "2022.06.29"]
[WhiteClock "0:00:30"]
[BlackClock "0:00:09"]

1. d4 {[%clk 0:03:00]}  Nf6 {[%clk 0:02:48]} 2. Nf3 {[%clk 0:03:00]}  e6 {[%clk 0:02:45]} 3. g3 {[%clk 0:03:00]}  b6 {[%clk 0:02:19]} 4. Bg2 {[%clk 0:03:00]}  Bb7 {[%clk 0:02:20]} 5. O-O {[%clk 0:03:00]}  Be7 {[%clk 0:02:19]} 6. c4 {[%clk 0:02:59]}  O-O {[%clk 0:02:19]} 7. Re1 {[%clk 0:03:00]}  c5 {[%clk 0:02:16]} 8. d5 {[%clk 0:02:56]}  exd5 {[%clk 0:02:16]} 9. Nh4 {[%clk 0:02:56]}  Re8 {[%clk 0:02:04]} 10. cxd5 {[%clk 0:02:52]}  d6 {[%clk 0:02:03]} 11. Nc3 {[%clk 0:02:51]}  Nbd7 {[%clk 0:02:02]} 12. Nf5 {[%clk 0:02:40]}  Bf8 {[%clk 0:02:01]} 13. e4 {[%clk 0:02:40]}  Ba6 {[%clk 0:01:52]} 14. Bf1 {[%clk 0:02:18]}  Bxf1 {[%clk 0:01:48]} 15. Kxf1 {[%clk 0:02:18]}  g6 {[%clk 0:01:41]} 16. Nh6+ {[%clk 0:02:14]}  Kg7 {[%clk 0:01:41]} 17. Ng4 {[%clk 0:02:11]}  Nxg4 {[%clk 0:01:39]} 18. Qxg4 {[%clk 0:02:10]}  Ne5 {[%clk 0:01:37]} 19. Qd1 {[%clk 0:02:06]}  c4 {[%clk 0:01:35]} 20. Be3 {[%clk 0:02:00]}  Kg8 {[%clk 0:01:27]} 21. Bd4 {[%clk 0:01:55]}  Nd3 {[%clk 0:01:24]} 22. Re2 {[%clk 0:01:55]}  Qd7 {[%clk 0:01:18]} 23. Kg2 {[%clk 0:01:51]}  b5 {[%clk 0:01:17]} 24. a3 {[%clk 0:01:47]}  a5 {[%clk 0:00:53]} 25. Qd2 {[%clk 0:01:46]}  b4 {[%clk 0:00:50]} 26. Nd1 {[%clk 0:01:45]}  b3 {[%clk 0:00:40]} 27. Qg5 {[%clk 0:01:43]}  Bg7 {[%clk 0:00:39]} 28. Bxg7 {[%clk 0:01:37]}  Kxg7 {[%clk 0:00:40]} 29. Qe3 {[%clk 0:01:36]}  Rac8 {[%clk 0:00:28]} 30. Qd4+ {[%clk 0:01:35]}  Kg8 {[%clk 0:00:28]} 31. Ne3 {[%clk 0:01:30]}  Qb5 {[%clk 0:00:20]} 32. Ng4 {[%clk 0:01:28]}  Ne5 {[%clk 0:00:12]} 33. Nf6+ {[%clk 0:01:23]}  Kf8 {[%clk 0:00:12]} 34. Nxe8 {[%clk 0:01:22]}  Rxe8 {[%clk 0:00:12]} 35. f4 {[%clk 0:01:22]}  Nd3 {[%clk 0:00:11]} 36. e5 {[%clk 0:01:17]}  dxe5 {[%clk 0:00:09]} 37. fxe5 {[%clk 0:01:17]}  Rd8 {[%clk 0:00:08]} 38. e6 {[%clk 0:01:07]}  Qxd5+ {[%clk 0:00:06]} 39. Qxd5 {[%clk 0:01:07]}  Rxd5 {[%clk 0:00:07]} 40. Rf1 {[%clk 0:01:04]}  f5 {[%clk 0:00:06]} 41. e7+ {[%clk 0:01:04]}  Ke8 {[%clk 0:00:06]} 42. g4 {[%clk 0:00:59]}  f4 {[%clk 0:00:05]} 43. Rf3 {[%clk 0:00:36]}  Rd7 {[%clk 0:00:04]} 44. Rd2 {[%clk 0:00:28]}  Rxe7 {[%clk 0:00:03]} 45. Rfxd3 {[%clk 0:00:28]}  cxd3 {[%clk 0:00:04]} 46. Rxd3 {[%clk 0:00:29]}  Re2+ {[%clk 0:00:04]} 47. Kf3 {[%clk 0:00:28]}  Rxb2 {[%clk 0:00:05]} 48. Kxf4 {[%clk 0:00:28]}  a4 {[%clk 0:00:05]} 49. Rd4 {[%clk 0:00:27]}  Rf2+ {[%clk 0:00:04]} 50. Ke5 {[%clk 0:00:25]}  b2 {[%clk 0:00:05]} 51. Rb4 {[%clk 0:00:24]}  Rxh2 {[%clk 0:00:04]} 52. Ke6 {[%clk 0:00:21]}  Re2+ {[%clk 0:00:04]} 53. Kf6 {[%clk 0:00:22]}  h5 {[%clk 0:00:04]} 54. g5 {[%clk 0:00:20]}  h4 {[%clk 0:00:04]} 55. Kxg6 {[%clk 0:00:20]}  h3 {[%clk 0:00:04]} 56. Kf6 {[%clk 0:00:18]}  h2 {[%clk 0:00:04]} 57. g6 {[%clk 0:00:19]}  h1=Q {[%clk 0:00:04]} 58. g7 {[%clk 0:00:19]}  Qf1+ {[%clk 0:00:04]} 59. Kg6 {[%clk 0:00:19]}  Rg2+ {[%clk 0:00:04]} 60. Kh7 {[%clk 0:00:20]}  Qh1+ {[%clk 0:00:04]} 61. Kg8 {[%clk 0:00:20]}  Kd7 {[%clk 0:00:04]} 62. Rd4+ {[%clk 0:00:19]}  Kc6 {[%clk 0:00:04]} 63. Rf4 {[%clk 0:00:20]}  Qg1 {[%clk 0:00:03]} 64. Rf6+ {[%clk 0:00:21]}  Kd5 {[%clk 0:00:03]} 65. Rf5+ {[%clk 0:00:22]}  Ke4 {[%clk 0:00:03]} 66. Rf7 {[%clk 0:00:22]}  Rg6 {[%clk 0:00:02]} 67. Re7+ {[%clk 0:00:22]}  Kd3 {[%clk 0:00:02]} 68. Rf7 {[%clk 0:00:23]}  Rxg7+ {[%clk 0:00:01]} 69. Rxg7 {[%clk 0:00:23]}  Qxg7+ {[%clk 0:00:02]} 70. Kxg7 {[%clk 0:00:23]}  b1=Q {[%clk 0:00:02]} 71. Kf6 {[%clk 0:00:24]}  Kc3 {[%clk 0:00:03]} 72. Ke5 {[%clk 0:00:25]}  Qb2 {[%clk 0:00:03]} 73. Kd6 {[%clk 0:00:26]}  Kb3 {[%clk 0:00:04]} 74. Kc6 {[%clk 0:00:26]}  Qxa3 {[%clk 0:00:05]} 75. Kb6 {[%clk 0:00:27]}  Qb4+ {[%clk 0:00:06]} 76. Ka6 {[%clk 0:00:28]}  Kc3 {[%clk 0:00:07]} 77. Ka7 {[%clk 0:00:28]}  a3 {[%clk 0:00:08]} 78. Ka8 {[%clk 0:00:29]}  a2 {[%clk 0:00:08]} 79. Ka7 {[%clk 0:00:30]}  a1=Q# {[%clk 0:00:09]} 0-1


[Site "https://www.chess.com"]

[Event "Titled Tuesday Blitz June 28 Late 2022"]
[White "Hakobyan, Aram"]
[Black "Paszewski, Mateusz"]
[WhiteFideId "13306677"]
[BlackFideId "1141058"]
[WhiteElo "2557"]
[BlackElo "2171"]
[Result "1/2-1/2"]
[Round "03"]
[TimeControl "180+1"]
[Date "2022.06.28"]
[WhiteClock "0:00:22"]
[BlackClock "0:00:12"]

1. d4 {[%clk 0:03:00]}  d5 {[%clk 0:03:00]} 2. c4 {[%clk 0:03:01]}  c6 {[%clk 0:03:00]} 3. cxd5 {[%clk 0:03:01]}  cxd5 {[%clk 0:03:01]} 4. Bg5 {[%clk 0:03:01]}  f6 {[%clk 0:02:55]} 5. Bd2 {[%clk 0:03:01]}  Nc6 {[%clk 0:02:56]} 6. Nc3 {[%clk 0:03:01]}  e5 {[%clk 0:02:51]} 7. e4 {[%clk 0:02:57]}  dxe4 {[%clk 0:02:43]} 8. dxe5 {[%clk 0:02:57]}  fxe5 {[%clk 0:02:36]} 9. Bc4 {[%clk 0:02:57]}  Nf6 {[%clk 0:02:35]} 10. Nge2 {[%clk 0:02:57]}  Na5 {[%clk 0:02:35]} 11. Bb5+ {[%clk 0:02:55]}  Bd7 {[%clk 0:02:35]} 12. O-O {[%clk 0:02:51]}  Bxb5 {[%clk 0:02:05]} 13. Nxb5 {[%clk 0:02:50]}  a6 {[%clk 0:02:05]} 14. Nbc3 {[%clk 0:02:45]}  Bc5 {[%clk 0:02:04]} 15. Ng3 {[%clk 0:02:42]}  Nc4 {[%clk 0:01:59]} 16. Ncxe4 {[%clk 0:02:37]}  Nxd2 {[%clk 0:01:45]} 17. Nxd2 {[%clk 0:02:32]}  O-O {[%clk 0:01:44]} 18. Nde4 {[%clk 0:02:22]}  Nxe4 {[%clk 0:01:39]} 19. Nxe4 {[%clk 0:02:23]}  Qxd1 {[%clk 0:01:37]} 20. Rfxd1 {[%clk 0:02:16]}  Bd4 {[%clk 0:01:37]} 21. Rd2 {[%clk 0:02:12]}  Rac8 {[%clk 0:01:35]} 22. Kf1 {[%clk 0:02:09]}  Rc6 {[%clk 0:01:34]} 23. Rad1 {[%clk 0:02:05]}  Rfc8 {[%clk 0:01:31]} 24. Ke2 {[%clk 0:01:59]}  Kf7 {[%clk 0:01:26]} 25. b3 {[%clk 0:01:54]}  h6 {[%clk 0:01:24]} 26. Rd3 {[%clk 0:01:48]}  Rc2+ {[%clk 0:01:23]} 27. R1d2 {[%clk 0:01:47]}  Ke6 {[%clk 0:01:22]} 28. Rxc2 {[%clk 0:01:47]}  Rxc2+ {[%clk 0:01:23]} 29. Rd2 {[%clk 0:01:48]}  Rc1 {[%clk 0:01:20]} 30. f3 {[%clk 0:01:44]}  b5 {[%clk 0:01:14]} 31. Rd1 {[%clk 0:01:40]}  Rc2+ {[%clk 0:01:14]} 32. Rd2 {[%clk 0:01:40]}  Rc1 {[%clk 0:01:14]} 33. Kd3 {[%clk 0:01:39]}  Kd5 {[%clk 0:01:10]} 34. Rc2 {[%clk 0:01:38]}  Rd1+ {[%clk 0:01:09]} 35. Rd2 {[%clk 0:01:38]}  Rg1 {[%clk 0:01:05]} 36. h3 {[%clk 0:01:35]}  a5 {[%clk 0:01:00]} 37. Rc2 {[%clk 0:01:34]}  Rd1+ {[%clk 0:01:00]} 38. Ke2 {[%clk 0:01:33]}  Rg1 {[%clk 0:01:00]} 39. Kd3 {[%clk 0:01:30]}  Rd1+ {[%clk 0:01:00]} 40. Rd2 {[%clk 0:01:30]}  Rg1 {[%clk 0:01:01]} 41. Ng3 {[%clk 0:01:18]}  g6 {[%clk 0:00:51]} 42. Ne4 {[%clk 0:01:17]}  h5 {[%clk 0:00:46]} 43. Rc2 {[%clk 0:00:43]}  Rd1+ {[%clk 0:00:43]} 44. Ke2 {[%clk 0:00:43]}  Rg1 {[%clk 0:00:44]} 45. g4 {[%clk 0:00:42]}  Rh1 {[%clk 0:00:25]} 46. Ng5 {[%clk 0:00:42]}  a4 {[%clk 0:00:15]} 47. bxa4 {[%clk 0:00:42]}  bxa4 {[%clk 0:00:16]} 48. Kd3 {[%clk 0:00:40]}  Rd1+ {[%clk 0:00:15]} 49. Rd2 {[%clk 0:00:40]}  Rf1 {[%clk 0:00:11]} 50. gxh5 {[%clk 0:00:23]}  gxh5 {[%clk 0:00:11]} 51. Rc2 {[%clk 0:00:24]}  Rd1+ {[%clk 0:00:08]} 52. Ke2 {[%clk 0:00:24]}  Rg1 {[%clk 0:00:08]} 53. Ne4 {[%clk 0:00:23]}  Rh1 {[%clk 0:00:06]} 54. Nf6+ {[%clk 0:00:21]}  Kd6 {[%clk 0:00:06]} 55. Nxh5 {[%clk 0:00:18]}  Rh2+ {[%clk 0:00:06]} 56. Kd3 {[%clk 0:00:18]}  Rxh3 {[%clk 0:00:07]} 57. Ng7 {[%clk 0:00:12]}  Rxf3+ {[%clk 0:00:07]} 58. Kc4 {[%clk 0:00:11]}  a3 {[%clk 0:00:03]} 59. Nh5 {[%clk 0:00:11]}  Bb2 {[%clk 0:00:02]} 60. Rd2+ {[%clk 0:00:10]}  Ke6 {[%clk 0:00:02]} 61. Rg2 {[%clk 0:00:10]}  e4 {[%clk 0:00:02]} 62. Ng3 {[%clk 0:00:09]}  e3 {[%clk 0:00:03]} 63. Ne2 {[%clk 0:00:10]}  Rf2 {[%clk 0:00:03]} 64. Kd3 {[%clk 0:00:08]}  Rxg2 {[%clk 0:00:03]} 65. Nf4+ {[%clk 0:00:09]}  Kf5 {[%clk 0:00:04]} 66. Nxg2 {[%clk 0:00:09]}  Kg4 {[%clk 0:00:05]} 67. Nxe3+ {[%clk 0:00:10]}  Kf4 {[%clk 0:00:05]} 68. Nc4 {[%clk 0:00:10]}  Kf5 {[%clk 0:00:05]} 69. Na5 {[%clk 0:00:09]}  Ke6 {[%clk 0:00:06]} 70. Kc4 {[%clk 0:00:10]}  Kd6 {[%clk 0:00:06]} 71. Kb5 {[%clk 0:00:11]}  Kc7 {[%clk 0:00:06]} 72. Nc4 {[%clk 0:00:11]}  Kb7 {[%clk 0:00:07]} 73. Nd6+ {[%clk 0:00:11]}  Kc7 {[%clk 0:00:07]} 74. Ne4 {[%clk 0:00:12]}  Kb7 {[%clk 0:00:07]} 75. Nc5+ {[%clk 0:00:13]}  Kc7 {[%clk 0:00:07]} 76. Nd3 {[%clk 0:00:12]}  Kb7 {[%clk 0:00:08]} 77. Nb4 {[%clk 0:00:12]}  Kc7 {[%clk 0:00:09]} 78. Nd5+ {[%clk 0:00:13]}  Kb7 {[%clk 0:00:09]} 79. Kc5 {[%clk 0:00:14]}  Ka6 {[%clk 0:00:09]} 80. Nb4+ {[%clk 0:00:13]}  Kb7 {[%clk 0:00:09]} 81. Nc6 {[%clk 0:00:13]}  Bc1 {[%clk 0:00:09]} 82. Ne5 {[%clk 0:00:12]}  Bb2 {[%clk 0:00:09]} 83. Nd3 {[%clk 0:00:13]}  Kc7 {[%clk 0:00:09]} 84. Kb5 {[%clk 0:00:12]}  Kb7 {[%clk 0:00:09]} 85. Ka4 {[%clk 0:00:12]}  Kc7 {[%clk 0:00:09]} 86. Kb3 {[%clk 0:00:13]}  Kb6 {[%clk 0:00:09]} 87. Nb4 {[%clk 0:00:13]}  Kb7 {[%clk 0:00:09]} 88. Nc2 {[%clk 0:00:14]}  Kb6 {[%clk 0:00:08]} 89. Ne3 {[%clk 0:00:15]}  Kb7 {[%clk 0:00:09]} 90. Nc4 {[%clk 0:00:15]}  Kc6 {[%clk 0:00:09]} 91. Kb4 {[%clk 0:00:16]}  Kb7 {[%clk 0:00:09]} 92. Kb5 {[%clk 0:00:16]}  Bc1 {[%clk 0:00:10]} 93. Na5+ {[%clk 0:00:16]}  Kc7 {[%clk 0:00:10]} 94. Nb3 {[%clk 0:00:16]}  Bb2 {[%clk 0:00:11]} 95. Nc5 {[%clk 0:00:16]}  Bc1 {[%clk 0:00:11]} 96. Kc4 {[%clk 0:00:17]}  Bb2 {[%clk 0:00:11]} 97. Ne4 {[%clk 0:00:18]}  Bc1 {[%clk 0:00:10]} 98. Kd5 {[%clk 0:00:18]}  Bb2 {[%clk 0:00:11]} 99. Ng5 {[%clk 0:00:18]}  Bc1 {[%clk 0:00:11]} 100. Ne6+ {[%clk 0:00:19]}  Kb7 {[%clk 0:00:11]} 101. Nc5+ {[%clk 0:00:20]}  Kc7 {[%clk 0:00:11]} 102. Kc4 {[%clk 0:00:19]}  Bb2 {[%clk 0:00:11]} 103. Kb5 {[%clk 0:00:19]}  Bc1 {[%clk 0:00:11]} 104. Kb4 {[%clk 0:00:18]}  Bb2 {[%clk 0:00:11]} 105. Nb3 {[%clk 0:00:18]}  Kb7 {[%clk 0:00:11]} 106. Kb5 {[%clk 0:00:19]}  Kc7 {[%clk 0:00:11]} 107. Ka6 {[%clk 0:00:19]}  Kc6 {[%clk 0:00:11]} 108. Ka5 {[%clk 0:00:20]}  Kd5 {[%clk 0:00:10]} 109. Kb4 {[%clk 0:00:21]}  Kc6 {[%clk 0:00:10]} 110. Na5+ {[%clk 0:00:20]}  Kb6 {[%clk 0:00:10]} 111. Nc4+ {[%clk 0:00:21]}  Kc6 {[%clk 0:00:11]} 112. Kb3 {[%clk 0:00:21]}  Kb5 {[%clk 0:00:11]} 113. Ne3 {[%clk 0:00:21]}  Kc5 {[%clk 0:00:11]} 114. Nc2 {[%clk 0:00:22]}  Kb5 {[%clk 0:00:11]} 115. Nb4 {[%clk 0:00:22]}  Kc5 {[%clk 0:00:11]} 116. Ka4 {[%clk 0:00:22]}  Kb6 {[%clk 0:00:12]} 117. Nd3 {[%clk 0:00:22]} 1/2-1/2


[Site "https://www.chess.com"]